[Event "1st FIDE Olympiad DIS 2023"]
[Site "Belgrade"]
[Date "2023.02.02"]
[Round "4.6"]
[White "Babula, Milan"]
[Black "Otero Munelo, Harlen Jose"]
[Result "1-0"]
[ECO "C26"]
[WhiteElo "2107"]
[BlackElo "2099"]
[Annotator "TA"]
[PlyCount "124"]
[EventDate "2023.01.30"]
[EventType "team-tourn"]
[EventCountry "SRB"]
[SourceTitle "playchess.com"]
[Source "ChessBase"]
[SourceQuality "1"]
[WhiteTeam "Czech Republic"]
[BlackTeam "Venezuela"]
[WhiteTeamCountry "CZE"]
[BlackTeamCountry "VEN"]
[TimeControl "40/5400+30:1800+30"]

{[%evp 13,124,0,9,8,5,0,6,4,23,0,37,34,32,22,38,27,28,15,34,33,58,37,46,45,39,40,41,31,39,27,36,34,36,34,58,39,57,37,33,36,36,25,44,41,44,35,41,43,37,26,43,31,33,37,40,41,45,38,62,40,47,47,67,50,60,13,36,0,0,-18,0,-45,0,0,0,-2,0,0,0,-62,-50,-50,-55,-73,-59,-55,0,5,97,83,175,148,216,89,333,287,345,318,486,475,629,640,650,632,850,879,986,916,2704,1231,29990,29991,29992]} 1. e4 {[%emt 0:00:04]} e5 {[%emt 0:00:06]} 2. Nc3 {[%emt 0:00:33]} Bc5 {[%emt 0:03:12]} 3. g3 {[%emt 0:02:19]} Nf6 {[%emt 0:01:19]} 4. Bg2 {[%emt 0:00:39]} O-O {[%emt 0:02:01]} 5. Nf3 {[%emt 0:06:27]} d6 {[%emt 0:04:08]} 6. O-O {[%emt 0:00:09]} Nc6 {[%emt 0:05:41]} 7. d3 {[%emt 0:01:14]} Bg4 {[%emt 0:14:07]} 8. h3 {[%emt 0:01:21] C26: Vienna Game: 2...Nf6, sidelines .} Bxf3 {[%emt 0:00:13]} 9. Qxf3 {[%emt 0:01:08]} Nd4 {[%emt 0:01:40][%csl LRc2,LRf3]} 10. Qd1 {[%emt 0:00:09] The position is equal.} a6 {[%emt 0:01:33]} 11. Kh2 {[%emt 0:06:24]} h6 {[%emt 0:02:56]} 12. f4 {[%emt 0:03:18]} c6 {[%emt 0:01:16] Dodges Nd5} 13. Ne2 {[%emt 0:12:00] [#]} Qe7 $146 {[%emt 0:02:32]} ({Predecessor:} 13... Ne6 14. c3 Bb6 15. b3 a5 16. Ba3 c5 17. Bb2 d5 18. fxe5 Nh5 19. exd5 Ng5 {1-0 Wolf,P (1602)-Yigit,F Oberfranken-ch 2014 (1.1)}) 14. c3 {[%emt 0:00:56]} Nxe2 {[%emt 0:00:41]} 15. Qxe2 {[%emt 0:00:01]} Rad8 {[%emt 0:02:42]} 16. Bd2 {[%emt 0:05:41]} Rd7 {[%emt 0:03:55]} 17. Rae1 {[%emt 0:05:37]} Bb6 {[%emt 0:02:09]} 18. h4 {[%emt 0:15:48]} Re8 {[%emt 0:03:06]} 19. Bh3 {[%emt 0:00:44] And now fxe5 would win.} Rdd8 {[%emt 0:00:11]} 20. Qf3 {[%emt 0:08:39]} Nh7 {[%emt 0:06:11]} 21. h5 {[%emt 0:00:59]} Rf8 {[%emt 0:02:59]} 22. Re2 {[%emt 0:02:59]} Kh8 {[%emt 0:01:27] Black is weak on the light squares} 23. Bf5 {[%emt 0:02:55]} Ba7 {[%emt 0:11:54]} 24. Kh1 {[%emt 0:01:35]} Rde8 {[%emt 0:09:44]} 25. Rg2 {[%emt 0:04:35]} Bb6 {[%emt 0:02:23]} (25... Nf6 26. g4 $16) 26. b3 {[%emt 0:00:28]} Rd8 {[%emt 0:01:53]} (26... Nf6 27. g4 $16) 27. Re1 {[%emt 0:01:27]} Qf6 {[%emt 0:01:06]} 28. Rh2 {[%emt 0:02:56]} Rfe8 {[%emt 0:05:53]} 29. Rhe2 {[%emt 0:04:36]} Kg8 {[%emt 0:01:14]} 30. Qg4 {[%emt 0:01:05]} Kh8 {[%emt 0:00:50]} 31. Qh3 {[%emt 0:01:00]} Rf8 {[%emt 0:04:20]} 32. Rf1 {[%emt 0:02:13]} (32. Bxh7 {simplifies} Kxh7 33. Qf5+ Qxf5 34. exf5 f6 35. Kg2) 32... Qe7 {[%emt 0:00:09]} 33. Qg4 {[%emt 0:03:50]} Rb8 {[%emt 0:00:47]} 34. Kg2 {[%emt 0:00:53]} Rbd8 {[%emt 0:00:11]} 35. Bc1 {[%emt 0:00:37]} c5 {[%emt 0:00:39]} 36. c4 {[%emt 0:01:14]} Nf6 {[%emt 0:01:42]} 37. Qh3 {[%emt 0:00:13]} Ng8 {[%emt 0:00:23]} 38. Bb2 {[%emt 0:00:24]} Bc7 {[%emt 0:00:56]} 39. a3 {[%emt 0:00:25]} (39. Kg1 $14 {might be stronger.}) 39... b5 {[%emt 0:00:44]} 40. cxb5 {[%emt 0:02:03]} axb5 {[%emt 0:00:09]} 41. Ra1 {[%emt 0:30:49]} Nf6 {[%emt 0:31:27][%cal Oc5c4]} (41... Bb6 {seems wilder.} 42. Qg4 Qc7 43. Rc1 Ne7) 42. Qh4 {[%emt 0:00:00]} Rde8 {[%emt 0:00:00][%cal Oc5c4]} 43. Rc1 {[%emt 0:00:00]} Bb6 {[%emt 0:00:00]} 44. Kf3 {[%emt 0:00:00]} Bd8 {[%emt 0:00:00]} 45. Rec2 {[%emt 0:00:00]} Qb7 {[%emt 0:00:00][%cal Of6e4]} 46. Qh1 {[%emt 0:00:00] [#] Active counter play!} (46. fxe5 Nd7 47. Qg4 Nxe5+ 48. Bxe5 Rxe5 $17) ({White should try} 46. Qh2 $1 $11) 46... c4 $1 $15 {[%emt 0:01:36]} 47. fxe5 {[%emt 0:00:00]} (47. bxc4 bxc4) 47... dxe5 {[%emt 0:01:14]} 48. bxc4 {[%emt 0:00:00]} bxc4 {[%emt 0:00:06]} 49. dxc4 {[%emt 0:00:00][%cal Bd3c4,Bc4c5][%mdl 32]} Qb3+ {[%emt 0:00:37]} (49... g6 $15 50. hxg6 fxg6 51. Qxh6+ Nh7 52. Qxg6 Rxf5+ 53. Qxf5 Rf8 54. Qxf8+ (54. Bxe5+ Kg8 $17) 54... Nxf8 55. Bxe5+ Kg8) 50. Kg2 $11 {[%emt 0:00:00]} Nh7 {[%emt 0:00:46]} (50... Bc7 $11) 51. Re2 {[%emt 0:00:00]} Bg5 {[%emt 0:00:29]} (51... Nf6 $16) 52. Rc3 {[%emt 0:00:01]} Qb6 {[%emt 0:00:18] [#]} (52... Qa4 $16 53. c5 Qc6) 53. Qd1 {[%emt 0:03:02]} (53. c5 $1 $18 {[%cal Rc5b6]} Qc7 54. c6) 53... g6 $2 {[%emt 0:00:16] Black cannot hold the game after this.} (53... Be7 $16) 54. c5 {[%emt 0:00:35]} Qc7 {[%emt 0:00:57]} 55. Qd7 {[%emt 0:01:11]} ({Much less strong is} 55. hxg6 Rd8 56. Rd3 fxg6) 55... Qa5 {[%emt 0:00:38]} (55... Bd8 $142) 56. hxg6 $18 {[%emt 0:01:32]} Nf6 {[%emt 0:00:10]} 57. Qd6 {[%emt 0:00:57]} fxg6 {[%emt 0:00:22]} 58. Bxg6 {[%emt 0:00:04] This pair of bishops is nice.} Rd8 {[%emt 0:00:34]} 59. Qxe5 {[%emt 0:00:06] Threatens to win with Qe7.} Qb5 {[%emt 0:00:39]} 60. Rcc2 {[%emt 0:00:16]} Rd3 {[%emt 0:00:46]} 61. c6 {[%emt 0:00:16]} Kg8 {[%emt 0:00:29]} 62. Qxb5 {[%emt 0:00:04]} Rf7 {[%emt 0:01:04] Weighted Error Value: White=0.15 (very precise) /Black=0.42} 1-0

[Event "1st FIDE Olympiad DIS 2023"]
[Site "Belgrade"]
[Date "2023.02.02"]
[Round "4.7"]
[White "Gurbanov, Andrei"]
[Black "Rosikhin, Igor"]
[Result "1-0"]
[ECO "B06"]
[WhiteElo "2275"]
[BlackElo "1856"]
[Annotator "TA"]
[PlyCount "47"]
[EventDate "2023.01.30"]
[EventType "team-tourn"]
[EventCountry "SRB"]
[SourceTitle "playchess.com"]
[Source "ChessBase"]
[SourceQuality "1"]
[WhiteTeam "Israel"]
[BlackTeam "Belarus"]
[WhiteTeamCountry "ISR"]
[BlackTeamCountry "BLR"]
[TimeControl "40/5400+30:1800+30"]

{[%evp 9,47,66,58,45,45,32,43,52,47,51,52,52,65,48,67,58,65,51,90,70,114,74,138,175,216,216,195,216,183,133,145,153,448,458,412,419,1041,1054,1131,1097]} 1. d4 {[%emt 0:00:13]} g6 {[%emt 0:00:00]} 2. e4 {[%emt 0:00:08]} Bg7 {[%emt 0:00:07]} 3. Nc3 {[%emt 0:00:06]} c5 {[%emt 0:00:10]} 4. dxc5 {[%emt 0:00:16]} Bxc3+ {[%emt 0:00:08]} 5. bxc3 {[%emt 0:00:06]} Qa5 {[%emt 0:00:08][%csl LRc3,LRc5]} 6. Ne2 {[%emt 0:00:07] B06: Modern Defence.} Nf6 {[%emt 0:00:27]} 7. f3 {[%emt 0:15:06]} (7. Bh6 $5 {[%cal Rh6g7]}) 7... Qxc5 {[%emt 0:00:20]} 8. Bh6 {[%emt 0:00:10] White is slightly better.} Rg8 {[%emt 0:00:37] [#]} 9. Qd4 $146 {[%emt 0:00:59] Repels d5} ({Predecessor:} 9. Qd2 g5 10. h4 g4 11. Be3 Qa5 12. Bg5 gxf3 13. gxf3 Nh5 14. Bh3 f6 15. Bg4 {1-0 Alexakis,D (2450)-Batashevs,A (2166) Online Olym Div2 B rapid 2020 (4.5)}) 9... Qc7 {[%emt 0:00:23]} 10. Bg5 {[%emt 0:03:36]} Nh5 {[%emt 0:05:46]} 11. c4 {[%emt 0:05:08] White is more active.} Nc6 {[%emt 0:16:59]} 12. Qd2 $40 {[%emt 0:01:32][%mdl 128] White has some attack.} b6 {[%emt 0:17:24]} 13. Nc3 {[%emt 0:02:07]} Bb7 {[%emt 0:01:14]} 14. Nd5 {[%emt 0:01:06]} Qe5 {[%emt 0:00:33]} 15. Rb1 {[%emt 0:03:17]} e6 {[%emt 0:10:23]} (15... Rc8 $142) 16. Nc3 $16 {[%emt 0:01:35] aiming for Nb5.} f6 {[%emt 0:01:17]} 17. Be3 {[%emt 0:00:21]} O-O-O {[%emt 0:08:47]} 18. g4 {[%emt 0:09:51]} Ng7 {[%emt 0:05:10]} 19. Bf4 {[%emt 0:04:59]} (19. c5 $18) 19... Qd4 {[%emt 0:02:59] [#]} 20. Bd3 $1 {[%emt 0:00:13] Nb5 would be deadly.} e5 $2 {[%emt 0:06:59] This move loses the game for Black.} (20... Qc5 $16 {might work better.}) 21. Be3 $18 {[%emt 0:02:03]} Qd6 {[%emt 0:00:13]} 22. c5 {[%emt 0:00:17]} bxc5 {[%emt 0:01:21] [#]} (22... Qf8 $142 23. cxb6 a6) 23. Rxb7 $1 {[%emt 0:01:33][%mdl 512]} Nd4 {[%emt 0:00:12]} (23... Qxd3 24. Qxd3) 24. Nb5 {[%emt 0:00:59] Weighted Error Value: White=0.07 (flawless) /Black=0.39} 1-0

[Event "1st FIDE Olympiad DIS 2023"]
[Site "Belgrade"]
[Date "2023.02.02"]
[Round "4.7"]
[White "Abiad Parra, Victor"]
[Black "Valenta, Vit Vaclav"]
[Result "1/2-1/2"]
[ECO "C68"]
[WhiteElo "1855"]
[BlackElo "2022"]
[Annotator "TA"]
[PlyCount "107"]
[EventDate "2023.01.30"]
[EventType "team-tourn"]
[EventCountry "SRB"]
[SourceTitle "playchess.com"]
[Source "ChessBase"]
[SourceQuality "1"]
[WhiteTeam "Venezuela"]
[BlackTeam "Czech Republic"]
[WhiteTeamCountry "VEN"]
[BlackTeamCountry "CZE"]
[TimeControl "40/5400+30:1800+30"]

{[%evp 10,107,63,20,59,64,60,29,70,55,60,22,100,91,95,57,61,68,73,66,72,47,50,51,39,52,48,0,100,87,81,85,85,55,58,16,15,18,48,0,25,10,30,31,33,0,23,20,28,0,10,-34,-29,-62,-67,-52,-37,-81,-92,-171,-188,-175,-100,-83,-84,-77,-42,-45,-33,-37,-42,-36,-37,-61,-31,-39,-33,-42,-32,-63,-71,-57,-59,-70,-62,-54,-59,-61,-56,-62,-61,-97,-36,-36,-36,-36,-36,-36,0,-44]} 1. e4 {[%emt 0:00:45]} e5 {[%emt 0:00:12]} 2. Nf3 {[%emt 0:00:06]} Nc6 {[%emt 0:00:09]} 3. Bb5 {[%emt 0:00:12]} a6 {[%emt 0:00:10]} 4. Bxc6 {[%emt 0:00:08]} bxc6 {[%emt 0:00:08]} 5. d4 {[%emt 0:00:22]} exd4 {[%emt 0:00:20]} 6. Nxd4 {[%emt 0:01:37]} g6 {[%emt 0:01:47] C68: Ruy Lopez: Exchange Variation, sidelines.} 7. Nc3 {[%emt 0:04:49]} Bg7 {[%emt 0:00:22]} 8. Be3 {[%emt 0:04:49]} Bb7 {[%emt 0:02:07] White has an edge.} 9. Qd2 {[%emt 0:01:27]} d6 {[%emt 0:06:20] [#]} 10. f3 $146 {[%emt 0:08:03]} (10. O-O-O $5 {[%cal Rh1e1]}) ({Predecessor:} 10. O-O-O Qd7 11. f3 Ne7 12. Nb3 Rb8 13. h4 h6 14. Bd4 Bxd4 15. Qxd4 O-O 16. g4 {1-0 Skvorc,E (1796)-Marcius,I (1722) CRO-chT3B Center North 2010 (5.46)}) 10... Qd7 {[%emt 0:03:43]} (10... Qh4+ $11 11. g3 Qh3) 11. Nb3 $16 {[%emt 0:12:08]} Ne7 {[%emt 0:03:30][%cal Bg8e7,Be7f5,Bf5d4][%mdl 32]} 12. Bh6 {[%emt 0:06:06]} Bxh6 {[%emt 0:11:44]} 13. Qxh6 {[%emt 0:00:09]} O-O-O {[%emt 0:00:59]} 14. O-O-O {[%emt 0:01:39]} Qe6 {[%emt 0:01:21]} 15. Qe3 {[%emt 0:02:16] White is more active.} c5 {[%emt 0:00:44]} 16. Na5 {[%emt 0:20:04]} Nf5 {[%emt 0:11:26]} 17. Qd3 {[%emt 0:00:14]} (17. exf5 $2 {loses.} Qxe3+ 18. Rd2 gxf5 19. Nxb7 Kxb7 $19) 17... Nd4 {[%emt 0:00:20] [#]} 18. Nd5 {[%emt 0:01:57]} c6 {[%emt 0:11:26]} (18... Bxd5 $11 {keeps the balance.} 19. exd5 Qxd5) 19. Nb6+ {[%emt 0:07:46][%cal Bd5b6,Bb6c4,Bc4a5,Ba5b3][%mdl 32]} Kc7 {[%emt 0:07:41][%cal Bc8c7,Bc7b7,Bb7b6][%mdl 32]} 20. Nbc4 {[%emt 0:00:26] aiming for c3. A dynamic duo of knights.} d5 {[%emt 0:07:58]} 21. exd5 {[%emt 0:08:22]} cxd5 {[%emt 0:00:27]} 22. Nxb7 {[%emt 0:07:26]} (22. Ne3 $5 {[%cal Rh1e1]}) 22... Kxb7 {[%emt 0:07:40]} (22... dxc4 $2 23. Nxd8 Rxd8 24. Qe4 $18) 23. Na5+ {[%emt 0:01:04]} Kb6 {[%emt 0:00:33]} 24. Rhe1 {[%emt 0:03:21]} (24. b4 $1 $14 {deserves consideration.} Rhe8 25. bxc5+ Kxa5 26. Qxd4) 24... Qf6 {[%emt 0:03:40]} 25. Nb3 {[%emt 0:04:55][%cal Ob3c5]} Nc6 {[%emt 0:01:40]} (25... Qg5+ {with more complications.} 26. Kb1 Nc6 27. h4 Qf5) 26. Qe3 {[%emt 0:01:18]} d4 {[%emt 0:04:31]} 27. Qf2 {[%emt 0:02:01][%cal Oc2c3]} Rd5 {[%emt 0:02:01]} 28. Kb1 {[%emt 0:00:00]} Rhd8 {[%emt 0:00:59]} 29. Qe2 {[%emt 0:00:23]} Ne5 {[%emt 0:05:24]} 30. Nc1 {[%emt 0:00:36]} c4 {[%emt 0:01:14]} 31. Qe4 {[%emt 0:00:19]} Nc6 {[%emt 0:00:36]} 32. Qe2 {[%emt 0:00:25]} Rc5 {[%emt 0:01:34]} 33. a3 {[%emt 0:00:47]} a5 {[%emt 0:01:26]} 34. Qe4 {[%emt 0:00:29]} (34. c3 $17 {was worth a try.}) 34... Re5 $19 {[%emt 0:01:20]} 35. Qg4 {[%emt 0:00:02] [#]} Rxe1 {[%emt 0:00:19]} (35... Rb5 $1 $19 {[%cal Od4d3] White must now prevent ...d3!} 36. a4 Rb4) 36. Rxe1 $17 {[%emt 0:00:06]} h5 {[%emt 0:00:53]} 37. Qe4 {[%emt 0:00:17]} Rd6 {[%emt 0:00:40]} (37... Qg5 {is more complex.} 38. Re2 h4 39. b3 a4) 38. Qe2 {[%emt 0:01:14]} Re6 {[%emt 0:00:56]} 39. Qf2 {[%emt 0:00:36] White is weak on the dark squares} Rxe1 {[%emt 0:00:24]} 40. Qxe1 $15 {[%emt 0:00:01][%mdl 4096] Endgame KQN-KQN} Qe5 {[%emt 0:00:03]} 41. Qg1 {[%emt 0:31:04]} Kc7 {[%emt 0:30:49]} (41... Kc5 {is interesting.} 42. b3 Qe3 43. Qf1 d3) 42. Qf1 {[%emt 0:01:10]} Qe6 {[%emt 0:01:17]} ({Don't do} 42... Qxh2 43. Qxc4 Qxg2 44. Qxf7+ Kb6 45. Qb3+ Kc7 46. Qf7+ Kb6 47. Qd5 $11) 43. Qe2 {[%emt 0:00:00]} Kb6 {[%emt 0:00:00]} 44. Qxe6 {[%emt 0:00:00]} fxe6 {[%emt 0:00:00][%cal Bf7e6,Be6e5][%mdl 32] KN-KN} 45. Ne2 {[%emt 0:00:00]} e5 {[%emt 0:00:00] Prevents Nf4} 46. Ng3 {[%emt 0:00:00]} Kc5 {[%emt 0:00:00]} 47. Kc1 {[%emt 0:00:00]} Kd5 {[%emt 0:00:00]} 48. Kd2 {[%emt 0:00:00]} Ne7 {[%emt 0:00:00] Strongly threatening ...Nf5.} 49. Ne4 {[%emt 0:00:00]} Nf5 {[%emt 0:00:00] Threatens to win with ...Nh4.} 50. g3 {[%emt 0:00:00] [#] Wards off Nh4} Ne3 {[%emt 0:00:00]} (50... Nd6 $1 $17 {[%cal Rd6e4]} 51. Nf6+ Ke6) 51. h4 {[%emt 0:00:00]} a4 {[%emt 0:00:00]} 52. Nf6+ {[%emt 0:00:00]} Ke6 {[%emt 0:00:00]} 53. Ne4 {[%emt 0:00:00]} Kd5 {[%emt 0:00:27]} 54. Nf6+ $1 {[%emt 0:00:00] Weighted Error Value: White=0.17 (very precise) /Black=0.17 (very precise)} 1/2-1/2

[Event "1st FIDE Olympiad DIS 2023"]
[Site "Belgrade"]
[Date "2023.02.02"]
[Round "4.8"]
[White "Ryvova, Anna"]
[Black "Monterrey, Henry"]
[Result "1/2-1/2"]
[ECO "C01"]
[WhiteElo "1823"]
[BlackElo "1759"]
[Annotator "NA RC COMBH"]
[PlyCount "79"]
[EventDate "2023.01.30"]
[EventType "team-tourn"]
[EventCountry "SRB"]
[SourceTitle "playchess.com"]
[Source "ChessBase"]
[SourceQuality "1"]
[WhiteTeam "Czech Republic"]
[BlackTeam "Venezuela"]
[WhiteTeamCountry "CZE"]
[BlackTeamCountry "VEN"]
[TimeControl "40/5400+30:1800+30"]

{[%evp 8,79,-1,-17,-1,-12,32767,32767,32767,32767,32767,32767,32767,32767,13,32767,0,32767,0,32767,32767,-7,-1,32767,32767,-7,0,0,0,32767,0,32767,0,0,0,0,16,-130,-147,32767,32767,-148,-186,-245,32767,-119,-149,-137,-130,-137,-142,-143,-145,-231,-250,32767,-277,32767,-289,32767,32767,32767,0,-270,32767,32767,32767,32767,32767,32767,-276,-264,0,-299]} 1. e4 {[%emt 0:00:04]} e6 {[%emt 0:00:10]} 2. d4 {[%emt 0:00:04]} d5 {[%emt 0:00:04]} 3. exd5 {[%emt 0:00:05]} exd5 {[%emt 0:00:08]} 4. Bf4 {[%emt 0:00:07]} Bd6 {[%emt 0:00:21]} 5. Bxd6 {[%emt 0:00:14]} Qxd6 {[%emt 0:00:03]} 6. c3 {[%emt 0:00:08]} Nf6 {[%emt 0:00:36]} 7. Nf3 {[%emt 0:03:54]} O-O {[%emt 0:01:12]} 8. Be2 {[%emt 0:00:43]} b6 {[%emt 0:05:53]} 9. O-O {[%emt 0:00:24]} c5 {[%emt 0:01:02]} 10. Nbd2 {[%emt 0:03:42]} Ba6 {[%emt 0:00:50]} 11. Re1 {[%emt 0:06:06]} Bxe2 {[%emt 0:00:12]} 12. Rxe2 {[%emt 0:00:14]} Nc6 {[%emt 0:00:20]} 13. dxc5 {[%emt 0:22:46]} bxc5 {[%emt 0:00:39]} 14. Ne4 {[%emt 0:04:47]} Nxe4 {[%emt 0:00:31]} 15. Rxe4 {[%emt 0:00:07]} Rad8 {[%emt 0:01:15]} 16. Re2 {[%emt 0:03:02]} Rfe8 {[%emt 0:02:38]} 17. Rxe8+ {[%emt 0:00:53]} Rxe8 {[%emt 0:00:02]} 18. Qd2 {[%emt 0:00:14]} Ne5 {[%emt 0:01:04]} 19. Nxe5 {[%emt 0:00:42]} Qxe5 {[%emt 0:00:13]} 20. Rd1 {[%emt 0:04:00]} g6 {[%emt 0:04:23]} 21. g3 {[%emt 0:13:32]} Rb8 {[%emt 0:04:46]} 22. Re1 {[%emt 0:03:29] [#]} (22. b4 $11 {keeps the balance.}) 22... Rxb2 $3 {[%emt 0:00:57] Deflection} 23. Rxe5 {[%emt 0:05:58]} Rxd2 {[%emt 0:00:09]} 24. Re8+ {[%emt 0:03:46]} Kg7 {[%emt 0:00:19]} 25. Rd8 {[%emt 0:00:22]} d4 {[%emt 0:04:06]} 26. cxd4 {[%emt 0:01:17]} Rxd4 {[%emt 0:00:15]} ({And not} 26... cxd4 27. a4 $17) 27. Rc8 {[%emt 0:00:29]} Ra4 {[%emt 0:04:08]} 28. Rxc5 {[%emt 0:00:22]} Rxa2 {[%emt 0:00:02]} 29. h4 {[%emt 0:01:18]} h5 {[%emt 0:00:19]} 30. Rc6 {[%emt 0:00:17]} a5 {[%emt 0:02:18]} 31. Ra6 {[%emt 0:00:10]} a4 {[%emt 0:01:20]} 32. Kg2 {[%emt 0:00:14]} a3 {[%emt 0:00:28]} 33. Kf3 {[%emt 0:05:02]} Kf8 {[%emt 0:01:18]} 34. Ra7 {[%emt 0:00:04]} Kg7 $2 {[%emt 0:00:33]} (34... Ra1 $19 35. Kf4 f6) 35. Ra6 $19 {[%emt 0:00:04]} Ra1 {[%emt 0:02:55]} 36. Kg2 {[%emt 0:01:59]} a2 {[%emt 0:00:14]} 37. Kf3 {[%emt 0:00:49]} Kf8 {[%emt 0:01:41]} 38. Ra7 {[%emt 0:00:04]} Ke8 {[%emt 0:00:51]} 39. Kf4 {[%emt 0:04:52] [#]} Kf8 $2 {[%emt 0:04:20]} (39... f6 $1 $19 40. Kf3 Kd8) 40. Kf3 {[%emt 0:00:06]} 1/2-1/2

[Event "1st FIDE Olympiad DIS 2023"]
[Site "Belgrade"]
[Date "2023.02.02"]
[Round "4.8"]
[White "Tran, Thi Bich Thuy"]
[Black "Aleksandrova, Aleksandra"]
[Result "0-1"]
[ECO "A41"]
[WhiteElo "1422"]
[BlackElo "1701"]
[Annotator "NA RC COMBH"]
[PlyCount "70"]
[EventDate "2023.01.30"]
[EventType "team-tourn"]
[EventCountry "SRB"]
[SourceTitle "playchess.com"]
[Source "ChessBase"]
[SourceQuality "1"]
[WhiteTeam "Vietnam"]
[BlackTeam "Israel"]
[WhiteTeamCountry "VIE"]
[BlackTeamCountry "ISR"]
[TimeControl "40/5400+30:1800+30"]

1. d4 {[%emt 0:00:11]} d6 {[%emt 0:00:05]} 2. Bg5 {[%emt 0:00:37]} c6 {[%emt 0:00:13]} 3. Nf3 {[%emt 0:01:08]} Qb6 {[%emt 0:03:14]} 4. Nc3 {[%emt 0:03:16]} Qxb2 {[%emt 0:03:43]} 5. Bd2 {[%emt 0:00:30]} Qb6 {[%emt 0:00:24]} 6. e3 {[%emt 0:03:38]} Nd7 {[%emt 0:01:18]} 7. Bd3 {[%emt 0:03:15]} g6 {[%emt 0:01:51]} 8. Rb1 {[%emt 0:04:18]} Qc7 {[%emt 0:00:22]} 9. O-O {[%emt 0:07:27]} Bg7 {[%emt 0:01:01]} 10. Ng5 {[%emt 0:02:02]} h6 {[%emt 0:01:49]} 11. Nf3 {[%emt 0:02:55]} e5 {[%emt 0:02:34]} 12. dxe5 {[%emt 0:08:06]} dxe5 {[%emt 0:00:58]} 13. Bc4 {[%emt 0:02:57]} b5 {[%emt 0:02:54]} 14. Be2 {[%emt 0:11:50]} a5 {[%emt 0:02:15]} 15. a3 {[%emt 0:04:54]} Ngf6 {[%emt 0:02:28]} 16. Re1 {[%emt 0:04:51]} O-O {[%emt 0:01:09]} 17. Bf1 {[%emt 0:00:28]} e4 {[%emt 0:02:41]} 18. Nd4 {[%emt 0:00:27]} Ne5 {[%emt 0:00:52]} 19. Nce2 {[%emt 0:02:18]} Nc4 {[%emt 0:03:27]} 20. Bc1 {[%emt 0:00:24]} Rd8 {[%emt 0:08:55]} 21. Nc3 {[%emt 0:06:03]} Ng4 {[%emt 0:04:23]} 22. g3 {[%emt 0:09:01]} Qe5 {[%emt 0:00:40]} 23. Bxc4 {[%emt 0:00:29]} bxc4 {[%emt 0:00:28]} 24. Qe2 {[%emt 0:00:42]} c5 {[%emt 0:03:34]} 25. h3 {[%emt 0:01:46]} cxd4 {[%emt 0:00:54]} 26. exd4 {[%emt 0:00:07]} Qh5 {[%emt 0:04:32]} 27. hxg4 {[%emt 0:01:00]} Bxg4 {[%emt 0:00:08]} 28. Qf1 {[%emt 0:02:09]} Bf3 {[%emt 0:00:33]} 29. Qg2 {[%emt 0:01:12]} Bxg2 {[%emt 0:00:08]} 30. Kxg2 {[%emt 0:00:14]} Qf3+ {[%emt 0:00:08]} 31. Kg1 {[%emt 0:00:21]} Qxc3 {[%emt 0:00:31]} 32. Bb2 {[%emt 0:04:23]} Qxc2 {[%emt 0:00:36]} 33. Rec1 {[%emt 0:00:26]} Qe2 {[%emt 0:00:12]} 34. Re1 {[%emt 0:00:14]} Qf3 {[%emt 0:00:24]} 35. Re3 {[%emt 0:00:17]} Qf5 {[%emt 0:00:07]} 0-1